bitfinex-derivatives/quotes_BTCF0:USTF0_20210108
["timestamp","ask_amount","ask_price","bid_price","bid_amount"]
[1610086457983,0.13632608,38149.0,38144.0,0.03244737]
[1610086458183,0.13632608,38149.0,38143.0,0.09695]
[1610086458384,0.13632608,38149.0,38145.0,0.00029691]
[1610086458584,0.13632608,38149.0,38129.0,0.03245067]
[1610086458885,0.13632608,38149.0,38146.0,0.00029695]
[1610086459086,0.13632608,38149.0,38133.0,0.08398]
[1610086459385,0.13632608,38149.0,38134.0,0.03245357]
[1610086459887,0.13632608,38166.0,38162.0,0.13632608]
[1610086460088,0.10602,38177.0,38162.0,0.26135608]
[1610086460385,0.01543317,38216.0,38163.0,0.00029688]
[1610086460785,0.01544949,38224.0,38163.0,0.03244051]
[1610086460984,0.01544949,38224.0,38207.0,0.5]
[1610086461184,0.29694884,38227.0,38207.0,0.5]
[1610086461588,0.2815,38227.0,38199.0,0.5]
[1610086461787,0.13632608,38200.0,38199.0,0.49839415]
[1610086462288,0.13632608,38200.0,38199.0,0.49869092]
[1610086464389,0.13632608,38200.0,38199.0,0.00029677]
[1610086464689,0.13632608,38200.0,38197.0,0.00029677]
[1610086465490,0.13632608,38200.0,38187.0,0.00029677]
[1610086465889,0.11167,38212.0,38198.0,0.00029677]
[1610086466089,0.11167,38212.0,38188.0,0.00029677]
[1610086466289,0.11167,38212.0,38186.0,0.10677]
[1610086466290,0.11167,38212.0,38199.0,0.00029677]
[1610086466589,0.11167,38212.0,38194.0,0.12606]
[1610086466788,0.11167,38212.0,38178.0,3.95980947]
[1610086466988,0.36215,38227.0,38178.0,3.95980947]
[1610086467190,0.36215,38227.0,38179.0,0.03243001]
[1610086467591,0.36215,38227.0,38208.0,0.5]
[1610086467792,0.13632608,38209.0,38208.0,0.5]
[1610086468092,0.13632608,38209.0,38208.0,0.00029673]
[1610086468692,0.13632608,38209.0,38200.0,0.00029673]
[1610086468893,0.13632608,38209.0,38208.0,0.00029673]
[1610086469295,0.13632608,38209.0,38201.0,0.00029673]
[1610086469494,0.13632608,38209.0,38208.0,0.00029673]
[1610086469695,0.13632608,38209.0,38202.0,0.00029673]
[1610086470095,0.13632608,38209.0,38208.0,0.00029676]
[1610086470395,0.13632608,38209.0,38203.0,0.00029676]
[1610086470595,0.13632608,38209.0,38208.0,0.00029676]
[1610086470798,0.13632608,38209.0,38204.0,0.00029676]
[1610086470996,0.13632608,38209.0,38208.0,0.00029676]
[1610086471395,0.13632608,38209.0,38189.0,0.00029676]
[1610086471595,0.13632608,38209.0,38180.0,0.5]
[1610086471796,0.13632608,38181.0,38180.0,0.5]
[1610086472403,0.13632608,38181.0,38180.0,0.00029679]
[1610086473002,0.13632608,38181.0,38171.0,0.03243919]
[1610086473202,0.13632608,38181.0,38180.0,0.00029682]
[1610086473402,0.13632608,38181.0,38172.0,0.00029682]
[1610086473598,0.13632608,38181.0,38180.0,0.00029682]
[1610086473902,0.10443,38187.0,38173.0,0.00029687]
[1610086474200,0.10443,38187.0,38181.0,0.00029687]
[1610086474603,0.10458,38195.0,38163.0,3.603]
[1610086474604,0.10458,38195.0,38173.0,0.12149]
[1610086474800,0.10458,38195.0,38182.0,0.00029682]
[1610086475101,0.46516116,38203.0,38182.0,0.00029682]
[1610086475102,0.286,38205.0,38182.0,0.10009]
[1610086475302,0.286,38205.0,38183.0,0.00029684]
[1610086475702,0.286,38205.0,38189.0,0.5]
[1610086476103,0.286,38205.0,38183.0,0.00029684]
[1610086476403,0.40287,38205.0,38190.0,0.00029679]
[1610086476602,0.40287,38205.0,38182.0,0.10009]
[1610086476603,0.40287,38205.0,38184.0,0.00029679]
[1610086476802,0.40287,38205.0,38191.0,0.00029679]
[1610086477203,0.40287,38205.0,38192.0,0.00029679]
[1610086477703,1.5,38204.0,38192.0,0.00029679]
[1610086477904,0.13632608,38193.0,38192.0,0.00029679]
[1610086478304,0.21698608,38193.0,38192.0,0.00029679]
[1610086484013,0.23284883,38193.0,38190.0,0.5]
[1610086484414,0.6883388,38193.0,38190.0,0.49839397]
[1610086484616,0.69234845,38192.0,38191.0,0.00029681]
[1610086485115,2.11649296,38192.0,38163.0,0.03214555]
[1610086485316,1.73101185,38192.0,38191.0,0.00029685]
[1610086485515,1.73101185,38192.0,38164.0,0.03244265]
[1610086485816,0.13632608,38165.0,38163.0,0.03244272]
[1610086486122,0.13632608,38165.0,38155.0,0.06429109]
[1610086486316,0.13632608,38165.0,38164.0,0.03244603]
[1610086486717,0.13632608,38165.0,38155.0,0.03244594]
[1610086486917,0.13632608,38165.0,38164.0,0.03244598]
[1610086487119,0.13632608,38165.0,38156.0,0.03244576]
[1610086487419,0.13632608,38165.0,38155.0,0.032446]
[1610086487624,0.13632608,38165.0,38157.0,0.03244669]
[1610086487823,0.13632608,38158.0,38157.0,0.03244669]
[1610086488019,0.13632608,38158.0,38156.0,0.03244686]
[1610086488220,0.13632608,38158.0,38154.0,0.1121]
[1610086488420,0.13632608,38158.0,38157.0,0.03244758]
[1610086488821,0.13632608,38158.0,38155.0,0.03244877]
[1610086489021,0.13632608,38158.0,38157.0,0.03244883]
[1610086489223,0.13632608,38158.0,38156.0,0.03245102]
[1610086489423,0.16042612,38158.0,38157.0,0.11521]
[1610086489623,0.02410004,38158.0,38157.0,0.1476595]
[1610086489827,0.13632608,38159.0,38157.0,0.28398558]
[1610086490226,0.00808515,38169.0,38157.0,0.28398558]
[1610086490528,0.00808384,38173.0,38158.0,0.03244164]
[1610086490728,0.00808644,38176.0,38158.0,0.03244164]
[1610086491129,0.00808578,38179.0,38159.0,0.03243712]
[1610086491528,0.00808686,38181.0,38159.0,0.03243712]
[1610086491728,0.00808686,38181.0,38158.0,0.03243404]
[1610086491930,0.00808664,38182.0,38165.0,0.13632608]
[1610086492330,0.00808664,38182.0,38166.0,0.03213536]
[1610086492530,0.00808664,38182.0,38166.0,0.03243211]
[1610086492729,0.02410599,38182.0,38166.0,0.03243211]
[1610086493131,0.02411047,38176.0,38167.0,0.0002968]
[1610086493329,0.02411047,38176.0,38167.0,0.0324374]
[1610086493530,0.00809188,38174.0,38167.0,0.0324374]
[1610086493834,0.00809228,38173.0,38166.0,0.03243843]
[1610086494032,0.13632608,38167.0,38165.0,0.11344]
[1610086494330,0.13632608,38167.0,38166.0,0.03243645]
[1610086495732,0.00809411,38176.0,38166.0,0.03243645]
[1610086495933,0.00809411,38176.0,38175.0,0.13632608]
[1610086496133,0.14441972,38177.0,38175.0,0.13632608]
[1610086496333,0.14441972,38177.0,38175.0,0.16875891]
[1610086496533,0.13632608,38177.0,38175.0,0.16875891]
[1610086496732,0.13632608,38177.0,38176.0,0.03242994]
[1610086498134,0.13632608,38177.0,38176.0,0.03213195]
[1610086498333,0.13632608,38177.0,38176.0,0.03243406]
[1610086498532,0.13632608,38177.0,38175.0,0.03243569]
[1610086498836,0.13632608,38177.0,38176.0,0.03243496]
[1610086499035,0.13632608,38177.0,38176.0,0.03243463]
[1610086499233,0.13632608,38177.0,38174.0,0.03243431]
[1610086499533,0.13632608,38177.0,38176.0,0.03243434]
[1610086499733,0.13632608,38177.0,38175.0,0.03243412]
[1610086499933,0.13632608,38177.0,38176.0,0.13632608]
[1610086500133,0.13632608,38177.0,38174.0,0.03243311]
[1610086500333,0.13632608,38177.0,38173.0,0.08093]
[1610086500334,0.13632608,38177.0,38176.0,0.03243478]
[1610086500533,0.13632608,38177.0,38175.0,0.03243543]
[1610086500932,0.13632608,38177.0,38174.0,0.03243427]
[1610086501133,0.13632608,38177.0,38173.0,0.08093]
[1610086501134,0.13632608,38177.0,38176.0,0.03243161]
[1610086501332,0.13632608,38177.0,38175.0,0.03243075]
[1610086501736,0.13632608,38177.0,38174.0,0.03243043]
[1610086501933,0.13632608,38177.0,38176.0,0.03242717]
[1610086502132,0.13632608,38177.0,38175.0,0.03242802]
[1610086502736,0.13632608,38177.0,38174.0,0.03243001]
[1610086502934,0.13632608,38177.0,38173.0,0.08093]
[1610086502935,0.13632608,38177.0,38176.0,0.03242925]
[1610086503134,0.13632608,38177.0,38176.0,0.00030216]
[1610086503334,0.13632608,38177.0,38175.0,0.03242947]
[1610086503635,0.13632608,38177.0,38176.0,0.03242969]
[1610086503835,0.13632608,38177.0,38174.0,0.03242995]
[1610086504138,0.13632608,38177.0,38176.0,0.03243182]
[1610086504336,0.13632608,38177.0,38175.0,0.03243144]
[1610086504536,0.13632608,38177.0,38174.0,0.03243151]
[1610086504737,0.13632608,38177.0,38176.0,0.53243347]
[1610086505037,0.13632608,38177.0,38176.0,0.5]
[1610086505337,0.13632608,38177.0,38176.0,0.53243271]
[1610086508639,0.13632608,38177.0,38176.0,0.03243271]
[1610086509245,0.13632608,38177.0,38175.0,0.03242829]
[1610086509542,0.13632608,38177.0,38176.0,0.0324285]
[1610086509743,0.13632608,38177.0,38176.0,0.5324285]
[1610086510347,0.00812447,38186.0,38176.0,0.5324285]
[1610086510848,0.0242139,38187.0,38177.0,0.03242684]
[1610086511249,0.00812427,38187.0,38177.0,0.03242684]
[1610086511448,0.00812427,38187.0,38176.0,0.5]
[1610086511648,0.00812752,38185.0,38178.0,0.03242485]
[1610086511948,0.00812752,38185.0,38177.0,0.03242552]
[1610086512148,0.00812752,38185.0,38179.0,0.00030213]
[1610086512555,0.00812838,38184.0,38178.0,0.00030213]
[1610086512752,0.00812838,38184.0,38180.0,0.00030213]
[1610086512953,0.00812847,38183.0,38180.0,0.00030213]
[1610086513154,0.00812847,38183.0,38177.0,0.03242554]
[1610086513454,0.00812847,38183.0,38181.0,0.1016]
[1610086513653,0.02422536,38184.0,38181.0,0.1016]
[1610086513855,0.02422536,38184.0,38182.0,0.03242682]
[1610086514054,0.13632608,38183.0,38182.0,0.03242682]
[1610086514457,0.1524219,38183.0,38182.0,0.03242682]
[1610086514956,0.61458799,38183.0,38182.0,0.03242682]
[1610086516656,1.57382138,38183.0,38182.0,0.03242682]
[1610086517160,1.18853965,38183.0,38182.0,0.03242682]
[1610086517457,1.57385416,38183.0,38182.0,0.03242682]
[1610086517858,2.27545103,38183.0,38182.0,0.03242682]
[1610086518057,2.27545103,38183.0,38181.0,0.5856]
[1610086518257,2.27545103,38183.0,38181.0,0.27694849]
[1610086518559,1.57385416,38183.0,38181.0,0.27694849]
[1610086518757,0.02423389,38182.0,38178.0,0.5]
[1610086519357,0.02423389,38182.0,38179.0,0.03242745]
[1610086519559,0.00813371,38181.0,38179.0,0.03242745]
[1610086520160,0.00813371,38181.0,38175.0,0.13632608]
[1610086520362,0.00813371,38181.0,38180.0,0.03242733]
[1610086520560,0.00813371,38181.0,38176.0,0.03242733]
[1610086520861,0.0081347,38182.0,38176.0,0.03242733]
[1610086521364,0.39593031,38183.0,38176.0,0.03242733]
[1610086521762,0.38779561,38183.0,38182.0,0.5]
[1610086521963,0.38779561,38183.0,38182.0,0.60235]
[1610086522164,0.38779561,38183.0,38182.0,0.76310136]
[1610086522767,0.38779561,38183.0,38182.0,0.8273493]
[1610086523265,0.38779561,38183.0,38182.0,0.3353493]
[1610086523465,0.38779561,38183.0,38182.0,0.27110136]
[1610086525170,0.38779561,38183.0,38182.0,0.77110136]
[1610086525373,0.38779561,38183.0,38182.0,0.63477528]
[1610086525568,0.38779561,38183.0,38182.0,0.69902027]
[1610086525970,0.38779561,38183.0,38182.0,0.63477528]
[1610086526268,0.38779561,38183.0,38182.0,0.69902637]
[1610086526269,0.40389801,38183.0,38182.0,0.69902637]
[1610086526469,0.40389801,38183.0,38182.0,0.63477528]
[1610086526668,0.40389801,38183.0,38182.0,0.69902794]
[1610086526870,0.88234125,38183.0,38182.0,0.63477528]
[1610086527270,0.40389801,38183.0,38182.0,0.69902829]
[1610086528572,0.86626886,38183.0,38182.0,0.69902829]
[1610086529371,0.40389811,38183.0,38182.0,0.69902829]
[1610086529872,0.39592629,38183.0,38182.0,0.69902829]
[1610086530073,0.25960021,38183.0,38182.0,0.77110136]
[1610086530274,0.25146953,38183.0,38182.0,0.77110136]
[1610086530573,0.25146953,38183.0,38182.0,0.8353508]
[1610086551799,0.00335495,38189.0,38182.0,0.8353508]
[1610086552000,0.00814732,38196.0,38182.0,0.8353508]
[1610086552200,0.00814732,38196.0,38195.0,4.43028608]
[1610086552402,0.70306594,38203.0,38195.0,4.43028608]
[1610086552403,0.01612036,38209.0,38195.0,4.62318469]
[1610086552902,0.57474674,38212.0,38196.0,0.19287986]
[1610086552903,0.01611824,38211.0,38196.0,0.19287986]
[1610086553102,0.0161174,38213.0,38196.0,0.19287986]
[1610086553301,0.0161174,38213.0,38209.0,3.1465]
[1610086553505,0.01610554,38216.0,38196.0,0.19287986]
[1610086553702,0.01610554,38216.0,38214.0,2.94]
[1610086554002,0.01609926,38221.0,38214.0,2.94]
[1610086554202,0.49444234,38235.0,38220.0,0.13632608]
[1610086554603,0.01606962,38240.0,38229.0,3.1056]
[1610086555002,0.01606962,38240.0,38229.0,3.21236]
[1610086555204,0.57285513,38250.0,38230.0,0.09655501]
[1610086555405,0.57285513,38250.0,38244.0,3.9843]
[1610086555606,0.79374435,38266.0,38244.0,3.9843]
[1610086555804,0.79374435,38266.0,38245.0,0.03237566]
[1610086556006,0.79365569,38274.0,38245.0,0.03237566]
[1610086556205,0.79365569,38274.0,38273.0,0.13632608]
[1610086556406,1.39671341,38289.0,38273.0,0.13632608]
[1610086556407,0.7935951,38278.0,38273.0,0.13632608]
[1610086556605,1.39660677,38293.0,38273.0,0.13632608]
[1610086556606,0.79157872,38282.0,38274.0,0.00030161]
[1610086557104,0.89722225,38299.0,38274.0,0.00030161]
[1610086557105,0.79157927,38283.0,38274.0,0.00030161]
[1610086557304,0.78987145,38286.0,38274.0,0.00030161]
[1610086557706,0.78984199,38288.0,38274.0,0.00030161]
[1610086558205,0.78969359,38289.0,38280.0,0.13632608]
[1610086558509,0.78813838,38293.0,38280.0,0.13632608]
[1610086558709,0.78813838,38293.0,38281.0,0.00030151]
[1610086558907,0.78813838,38293.0,38281.0,0.11364151]
[1610086559408,0.53928543,38326.0,38282.0,0.00030151]
[1610086559409,0.788097,38295.0,38282.0,0.00030151]
[1610086559809,0.78659676,38301.0,38282.0,0.00030151]
[1610086560108,0.78655339,38303.0,38282.0,0.00030151]
[1610086560407,0.13632608,38283.0,38282.0,0.00030151]
[1610086560708,0.13632608,38283.0,38281.0,0.11334]
[1610086561010,0.7865082,38304.0,38281.0,0.11334]
[1610086561214,0.78504289,38307.0,38281.0,0.11334]
[1610086561708,3.7726,38308.0,38281.0,0.11334]
[1610086561909,3.87357,38308.0,38281.0,0.11334]
[1610086562110,0.13632608,38282.0,38281.0,0.11334]
[1610086563909,0.13632608,38282.0,38275.0,0.5]
[1610086564410,0.13632608,38282.0,38281.0,0.21991608]
[1610086566412,0.13632608,38282.0,38281.0,0.08359]
[1610086569618,0.13632608,38282.0,38275.0,0.5]
[1610086569819,0.13632608,38282.0,38281.0,0.08141]
[1610086572823,0.13632608,38282.0,38281.0,0.58141]
[1610086573324,0.13632608,38282.0,38281.0,0.08141]
[1610086573725,0.13632608,38282.0,38273.0,0.08177]
[1610086573925,0.13632608,38282.0,38281.0,0.1164]
[1610086575426,0.10378,38319.0,38281.0,0.1164]
[1610086575628,0.2904,38329.0,38281.0,0.1164]
[1610086576329,0.2904,38329.0,38290.0,0.13632608]
[1610086576530,0.2904,38329.0,38290.0,0.25577608]
[1610086578432,0.2904,38329.0,38296.0,0.13632608]
[1610086580028,0.2904,38329.0,38297.0,0.00030076]
[1610086580234,0.13632608,38298.0,38297.0,0.00030076]
[1610086581032,0.13632608,38298.0,38291.0,0.00030073]
[1610086581230,0.13632608,38298.0,38297.0,0.00030073]
[1610086581434,0.13632608,38298.0,38292.0,0.00030075]
[1610086581632,0.13632608,38298.0,38291.0,0.00030075]
[1610086581831,0.13632608,38298.0,38293.0,0.00030075]
[1610086582132,0.13632608,38298.0,38292.0,0.00030075]
[1610086582433,0.13632608,38293.0,38291.0,0.00030075]
[1610086582632,0.13632608,38293.0,38292.0,0.00030075]
[1610086583332,0.13632608,38293.0,38291.0,0.00030077]
[1610086583533,0.13632608,38293.0,38292.0,0.00030077]
[1610086584133,0.13632608,38293.0,38291.0,0.03233592]
[1610086584333,0.13632608,38293.0,38292.0,0.00030075]
[1610086584833,0.13632608,38293.0,38292.0,0.03233527]
[1610086585033,0.13632608,38293.0,38291.0,0.0323356]
[1610086585435,0.13632608,38293.0,38292.0,0.03233641]
[1610086585836,0.13632608,38293.0,38291.0,0.03233553]
[1610086586334,0.13632608,38293.0,38292.0,0.16866134]
[1610086588134,0.13632608,38293.0,38292.0,0.12032608]
[1610086589333,0.13632608,38293.0,38292.0,0.62032608]
[1610086590033,0.13632608,38293.0,38292.0,0.60432608]
[1610086592137,0.13632608,38293.0,38292.0,0.59632608]
[1610086593739,0.07806,38333.0,38292.0,0.59632608]
[1610086593939,3.0925,38344.0,38292.0,0.59632608]
[1610086594338,3.0925,38344.0,38293.0,0.03233044]
[1610086596342,3.0925,38344.0,38304.0,0.13632608]
[1610086596542,0.2803,38354.0,38304.0,0.13632608]
[1610086596843,0.2803,38354.0,38305.0,0.03232885]
[1610086598043,0.2803,38354.0,38305.0,0.03202816]
[1610086598244,0.13632608,38305.0,38304.0,0.3099105]
[1610086598746,0.13632608,38305.0,38304.0,0.14235737]
[1610086601148,0.11898,38338.0,38304.0,0.14235737]
[1610086601348,0.11898,38338.0,38305.0,0.03232741]
[1610086601947,0.11898,38338.0,38305.0,0.09637638]
[1610086602348,0.13632608,38324.0,38319.0,0.13632608]
[1610086602951,0.13632608,38324.0,38320.0,0.03231986]
[1610086603352,0.13632608,38324.0,38320.0,0.16000986]
[1610086603850,0.13632608,38324.0,38321.0,0.03232095]
[1610086606355,0.13632608,38324.0,38323.0,0.13632608]
[1610086606854,0.13632608,38324.0,38323.0,0.03231736]
[1610086607257,0.13632608,38324.0,38322.0,0.03231715]
[1610086607456,0.13632608,38324.0,38323.0,0.03231781]
[1610086608056,0.13632608,38324.0,38321.0,0.03232343]
[1610086608256,0.13632608,38324.0,38320.0,0.12029]
[1610086608456,0.13632608,38324.0,38321.0,0.03232389]
[1610086608857,0.13632608,38324.0,38320.0,0.5]
[1610086609057,0.13632608,38324.0,38322.0,0.03232705]
[1610086609262,4.01142608,38324.0,38321.0,0.49839964]
[1610086609560,4.01142608,38324.0,38323.0,0.53232899]
[1610086609757,4.01142608,38324.0,38323.0,0.03232899]
[1610086610558,4.01142608,38324.0,38322.0,0.03233113]
[1610086610858,4.01142608,38324.0,38321.0,0.5]
[1610086610859,0.13632608,38324.0,38321.0,0.091]
[1610086611059,1.5,38323.0,38314.0,0.0891]
[1610086611259,3.5034,38315.0,38314.0,0.0891]
[1610086611469,3.5034,38315.0,38307.0,0.5]
[1610086611663,3.5034,38315.0,38314.0,0.03233391]
[1610086611862,5.52884276,38315.0,38308.0,0.03233467]
[1610086612061,5.73889374,38315.0,38308.0,0.03233467]
[1610086612360,0.13632608,38309.0,38264.0,0.16016871]
[1610086612562,1.5,38308.0,38264.0,0.16016871]
[1610086612965,4.0026,38286.0,38282.0,0.0323371]
[1610086613162,4.0026,38286.0,38265.0,0.03233766]
[1610086613665,4.0026,38286.0,38283.0,0.03234236]
[1610086613866,4.0026,38286.0,38271.0,0.08062]
[1610086614066,4.0026,38286.0,38284.0,0.03234397]
[1610086614268,4.0026,38286.0,38271.0,0.08062]
[1610086614468,0.13632608,38272.0,38271.0,0.08062]
[1610086614871,0.13632608,38272.0,38271.0,0.11296472]
[1610086616070,0.13632608,38272.0,38271.0,0.11296567]
[1610086616473,0.13632608,38272.0,38271.0,0.11296691]
[1610086617674,0.13632608,38272.0,38271.0,0.11296449]
[1610086618273,0.13632608,38272.0,38271.0,0.09696449]
[1610086620179,0.13632608,38272.0,38271.0,0.08096449]
[1610086622177,0.13632608,38272.0,38271.0,0.07316449]
[1610086622376,0.65972608,38272.0,38271.0,0.07316449]
[1610086624979,0.65972608,38272.0,38271.0,0.2874]
[1610086625182,0.13632608,38272.0,38271.0,0.2874]
[1610086625380,3.11512608,38272.0,38271.0,0.28770714]
[1610086625884,3.89752522,38272.0,38271.0,0.28770714]
[1610086626683,4.5939113,38272.0,38271.0,0.28770714]
[1610086627184,5.17067509,38272.0,38271.0,0.28610502]
[1610086627384,5.96167329,38272.0,38271.0,0.28610502]
[1610086627787,7.46167329,38272.0,38271.0,0.28610502]
[1610086628082,4.48287329,38272.0,38241.0,0.11825]
[1610086628384,0.13632608,38242.0,38241.0,0.11665]
[1610086628583,0.69872608,38242.0,38241.0,0.11665]
[1610086628782,0.69872608,38242.0,38241.0,0.1169573]
[1610086632084,1.63632608,38242.0,38201.0,0.06414724]
[1610086632384,1.63632608,38242.0,38188.0,0.13632608]
[1610086632385,0.13632608,38202.0,38188.0,0.13632608]
[1610086633084,0.13632608,38202.0,38189.0,0.03239303]
[1610086633284,0.13632608,38202.0,38189.0,0.14983303]
[1610086633486,0.13632608,38202.0,38189.0,0.14952556]
[1610086633885,0.13632608,38202.0,38190.0,0.03239396]
[1610086634386,0.13632608,38195.0,38190.0,0.03239396]
[1610086634588,4.3563,38226.0,38190.0,0.03239396]
[1610086635888,4.3563,38226.0,38191.0,0.1569]
[1610086636490,0.13632608,38202.0,38200.0,0.13632608]
[1610086636889,0.13632608,38202.0,38201.0,0.03239473]
[1610086637092,0.13632608,38202.0,38201.0,0.15320473]
[1610086637692,4.3563,38226.0,38201.0,0.12081]
[1610086637991,4.3563,38226.0,38202.0,0.03239522]
[1610086638693,0.69050564,38259.0,38215.0,0.13632608]
[1610086638694,0.5646312,38259.0,38215.0,0.13632608]
[1610086638890,0.091,38262.0,38215.0,0.23212608]
[1610086638891,0.65561516,38262.0,38215.0,0.23212608]
[1610086639091,0.65561516,38262.0,38216.0,0.03239191]
[1610086639292,0.091,38262.0,38216.0,0.03239191]
[1610086639592,0.56455982,38263.0,38216.0,0.03239191]
[1610086639792,2.9801,38264.0,38216.0,0.03239191]
[1610086640494,2.9801,38264.0,38223.0,0.13632608]
[1610086640895,2.9801,38264.0,38224.0,0.03238537]
[1610086641894,1.5,38263.0,38224.0,0.03238537]
[1610086642094,1.57959,38263.0,38224.0,0.03238537]
[1610086642495,0.13632608,38225.0,38224.0,0.03238537]
[1610086647001,0.13632608,38225.0,38224.0,0.53238537]
[1610086649802,0.13632608,38225.0,38224.0,0.59656529]
[1610086650100,0.13632608,38225.0,38224.0,0.53238537]
[1610086650300,0.13632608,38225.0,38224.0,0.59656501]
[1610086650602,0.13632608,38225.0,38224.0,0.53238537]
[1610086650900,0.13632608,38225.0,38224.0,0.59656541]
[1610086656207,0.13632608,38225.0,38224.0,0.53238537]
[1610086656406,0.13632608,38225.0,38224.0,0.59657629]
[1610086656605,0.13632608,38225.0,38224.0,0.53238537]
[1610086657007,0.13632608,38225.0,38224.0,0.59657399]
[1610086657205,0.13632608,38225.0,38224.0,0.53238537]
[1610086657407,0.13632608,38225.0,38224.0,0.59657097]
[1610086657808,0.13632608,38225.0,38224.0,0.53238537]
[1610086658007,0.13632608,38225.0,38224.0,0.59657046]
[1610086658308,0.13632608,38225.0,38224.0,0.53238537]
[1610086658508,0.13632608,38225.0,38224.0,0.59657091]
[1610086658808,0.13632608,38225.0,38224.0,0.53238537]
[1610086659008,0.13632608,38225.0,38224.0,0.59656857]
[1610086659311,0.13632608,38225.0,38224.0,0.53238537]
[1610086659509,0.13632608,38225.0,38224.0,0.59657024]
[1610086662014,0.33434732,38225.0,38224.0,0.59657024]
[1610086662412,0.33434732,38225.0,38224.0,0.53238537]
[1610086662815,0.33434732,38225.0,38224.0,0.59655557]
[1610086663014,0.33434732,38225.0,38224.0,0.53238537]
[1610086663214,0.33434732,38225.0,38224.0,0.59655464]
[1610086663615,0.33434732,38225.0,38224.0,0.53238537]
[1610086663815,0.33434732,38225.0,38224.0,0.59655361]
[1610086664014,0.33434732,38225.0,38224.0,0.53238537]
[1610086664214,0.33434732,38225.0,38224.0,0.59655462]
[1610086665819,0.46986679,38254.0,38224.0,0.59655462]
[1610086666315,0.46986679,38254.0,38225.0,0.03239133]
[1610086666616,0.47017901,38258.0,38227.0,0.13632608]
[1610086666918,0.5086,38254.0,38228.0,0.03238743]
[1610086668115,0.5086,38254.0,38227.0,0.13322608]
[1610086668717,0.13632608,38228.0,38227.0,0.13322608]
[1610086669116,0.13632608,38228.0,38227.0,0.19799923]
[1610086669416,0.13632608,38228.0,38227.0,0.16561264]
[1610086669716,0.5086,38254.0,38227.0,0.16561264]
[1610086670217,0.5086,38254.0,38228.0,0.03238637]
[1610086670717,0.5086,38254.0,38231.0,0.13632608]
[1610086671116,0.5086,38254.0,38232.0,0.03238457]
[1610086671617,2.06771139,38258.0,38232.0,0.03238457]
[1610086671817,3.0825,38242.0,38232.0,0.03238457]
[1610086672620,0.13632608,38233.0,38232.0,0.03238457]
[1610086673925,0.70112608,38233.0,38232.0,0.03238457]
[1610086674822,0.13632608,38233.0,38232.0,0.03238457]
[1610086675520,0.66262608,38233.0,38232.0,0.03238457]
[1610086675820,3.11659676,38233.0,38232.0,0.03238457]
[1610086676022,3.42729697,38233.0,38231.0,0.10494601]
[1610086676320,3.42729697,38233.0,38223.0,0.08764]
[1610086676321,4.60251303,38233.0,38223.0,0.08764]
[1610086676521,4.60251303,38233.0,38215.0,0.0958]
[1610086676722,0.56933552,38226.0,38224.0,0.03240523]
[1610086676922,0.56933552,38226.0,38216.0,0.03240787]
[1610086677122,1.26517739,38225.0,38194.0,0.16048497]
[1610086677621,0.56956387,38223.0,38194.0,0.19289286]
[1610086678121,0.56956766,38224.0,38209.0,0.08256]
[1610086678322,0.5699006,38223.0,38209.0,0.08256]
[1610086678522,0.5699006,38223.0,38210.0,0.03240887]
[1610086678723,0.13632608,38211.0,38210.0,0.03240887]
[1610086681727,0.57087442,38216.0,38210.0,0.03240887]
[1610086682226,0.57087442,38216.0,38214.0,3.3257]
[1610086682428,0.57118298,38227.0,38214.0,3.3257]
[1610086682628,0.57118298,38227.0,38215.0,0.09657811]
[1610086682930,0.13632608,38230.0,38226.0,0.23760608]
[1610086683129,0.13632608,38230.0,38226.0,0.2699962]
[1610086683630,0.57106142,38237.0,38226.0,0.2699962]
[1610086683631,0.57140745,38238.0,38227.0,0.03239159]
[1610086684128,0.57135327,38242.0,38227.0,0.03239159]
[1610086684729,0.57135327,38242.0,38239.0,0.13632608]
[1610086684928,1.11081483,38260.0,38239.0,0.13632608]
[1610086684929,0.5718047,38243.0,38239.0,0.13632608]
[1610086685230,0.5718047,38243.0,38239.0,0.26053608]
[1610086685431,0.57217814,38242.0,38240.0,0.0323855]
[1610086686034,0.94132293,38242.0,38240.0,0.0323855]
[1610086686533,0.5725575,38241.0,38240.0,0.0323855]
[1610086686734,0.70888358,38241.0,38240.0,0.0323855]
[1610086687334,1.0779899,38241.0,38240.0,0.0323855]
[1610086687733,0.70888358,38241.0,38240.0,0.0323855]
[1610086688134,0.70888358,38241.0,38239.0,0.10821]
[1610086688135,1.77820994,38241.0,38239.0,0.10821]
[1610086688536,1.40893848,38241.0,38239.0,0.10821]
[1610086688736,1.6424972,38240.0,38239.0,0.10821]
[1610086689236,0.9422493,38240.0,38239.0,0.14059756]
[1610086690336,1.6426545,38240.0,38239.0,0.12459756]
[1610086691738,0.9422493,38240.0,38239.0,0.12459756]
[1610086692139,0.13632608,38241.0,38239.0,0.12459756]
[1610086692140,0.70950753,38241.0,38239.0,0.12459756]
[1610086692338,0.70950753,38241.0,38240.0,0.03238663]
[1610086692636,0.13632608,38241.0,38240.0,0.03238663]
[1610086692939,0.13632608,38241.0,38240.0,0.16871271]
[1610086693538,0.5731582,38244.0,38240.0,0.16871271]
[1610086693840,0.57300197,38247.0,38240.0,0.16871271]
[1610086694040,0.57300197,38247.0,38241.0,0.03237979]
[1610086694242,0.57300197,38247.0,38240.0,0.12072608]
[1610086694740,0.57300197,38247.0,38246.0,0.13632608]
[1610086695343,0.57300197,38247.0,38246.0,0.16870505]
[1610086696242,0.57282682,38248.0,38246.0,0.16870505]
[1610086696643,0.57274302,38249.0,38247.0,0.03237789]
[1610086697044,0.69999983,38250.0,38247.0,0.15269789]
[1610086697344,0.84376786,38248.0,38247.0,0.12032]
[1610086697745,0.57269371,38248.0,38247.0,0.12032]
[1610086697945,0.57269371,38248.0,38247.0,0.1526981]
[1610086698153,0.57268835,38249.0,38247.0,0.1526981]
[1610086698345,0.57268835,38249.0,38247.0,0.1366981]
[1610086698645,0.57268835,38249.0,38248.0,0.03237958]
[1610086699046,0.69985653,38250.0,38248.0,0.03237958]
[1610086699447,0.84374605,38249.0,38248.0,0.03237958]
[1610086699747,1.27243633,38249.0,38248.0,0.03237958]
[1610086700246,1.27243633,38249.0,38247.0,0.08832]
[1610086700547,0.57260942,38249.0,38247.0,0.08832]
[1610086700749,0.13632608,38248.0,38247.0,0.08832]
[1610086700946,0.70889176,38248.0,38247.0,0.08832]
[1610086701146,0.70889176,38248.0,38247.0,0.12069668]
[1610086701446,0.97989139,38248.0,38247.0,0.12069668]
[1610086701648,0.70889176,38248.0,38247.0,0.12069668]
[1610086701848,0.57256568,38248.0,38247.0,0.12069668]
[1610086702049,0.57256636,38248.0,38247.0,0.12069668]
[1610086702349,0.57256636,38248.0,38247.0,0.07232]
[1610086702550,0.57253048,38249.0,38247.0,0.07232]
[1610086702749,0.57253048,38249.0,38247.0,0.03237854]
[1610086703552,0.57244039,38251.0,38247.0,0.03237854]